[Event "January 2 Early 2024"]
[Site "https://www.chess.com"]
[Date "2024.01.02"]
[Round "2"]
[White "Sturt, Raven"]
[Black "Toncheva, Nadya"]
[Result "1-0"]
[Board "80"]
[TimeControl "180+1"]
[WhiteFideId "2007304"]
[BlackFideId "2924056"]
[WhiteElo "2806"]
[BlackElo "2550"]
[WhiteTeam "USA"]
[BlackTeam "BUL"]
[WhiteClock "0:02:18"]
[BlackClock "0:01:00"]

1. f4 {[%clk 0:03:00]}  c5 {[%clk 0:02:56]} 2. Nf3 {[%clk 0:03:01]}  Nc6 {[%clk 0:02:56]} 3. e3 {[%clk 0:03:01]}  g6 {[%clk 0:02:55]} 4. Bb5 {[%clk 0:03:02]}  Bg7 {[%clk 0:02:55]} 5. O-O {[%clk 0:03:02]}  e6 {[%clk 0:02:53]} 6. Bxc6 {[%clk 0:03:01]}  bxc6 {[%clk 0:02:52]} 7. d3 {[%clk 0:03:02]}  Ne7 {[%clk 0:02:51]} 8. e4 {[%clk 0:03:02]}  O-O {[%clk 0:02:51]} 9. e5 {[%clk 0:02:57]}  f6 {[%clk 0:02:48]} 10. Nbd2 {[%clk 0:02:55]}  fxe5 {[%clk 0:02:46]} 11. fxe5 {[%clk 0:02:55]}  Nf5 {[%clk 0:02:40]} 12. Ne4 {[%clk 0:02:52]}  Nd4 {[%clk 0:02:25]} 13. Bg5 {[%clk 0:02:42]}  Nxf3+ {[%clk 0:02:08]} 14. Rxf3 {[%clk 0:02:41]}  Qb6 {[%clk 0:01:54]} 15. Rxf8+ {[%clk 0:02:27]}  Bxf8 {[%clk 0:01:37]} 16. Qf3 {[%clk 0:02:21]}  Qxb2 {[%clk 0:01:00]} 17. Rf1 {[%clk 0:02:18]} 1-0

[Event "January 2 Early 2024"]
[Site "https://www.chess.com"]
[Date "2024.01.02"]
[Round "2"]
[White "Parfenov, Viktor N."]
[Black "Molina, Roberto Junio Brito"]
[Result "1/2-1/2"]
[Board "82"]
[TimeControl "180+1"]
[WhiteFideId "4165969"]
[BlackFideId "2109450"]
[WhiteElo "2546"]
[BlackElo "2805"]
[WhiteTeam "RUS"]
[BlackTeam "BRA"]
[WhiteClock "0:00:15"]
[BlackClock "0:00:06"]

1. d4 {[%clk 0:03:00]}  d5 {[%clk 0:02:58]} 2. c4 {[%clk 0:02:57]}  c6 {[%clk 0:02:58]} 3. Nf3 {[%clk 0:02:55]}  Nf6 {[%clk 0:02:58]} 4. Nc3 {[%clk 0:02:55]}  dxc4 {[%clk 0:02:58]} 5. e4 {[%clk 0:02:54]}  b5 {[%clk 0:02:57]} 6. Be2 {[%clk 0:02:54]}  b4 {[%clk 0:02:57]} 7. Na4 {[%clk 0:02:51]}  Nxe4 {[%clk 0:02:58]} 8. Bxc4 {[%clk 0:02:44]}  Nf6 {[%clk 0:02:58]} 9. Ne5 {[%clk 0:02:41]}  e6 {[%clk 0:02:57]} 10. O-O {[%clk 0:02:41]}  a5 {[%clk 0:02:53]} 11. Qe2 {[%clk 0:02:36]}  Ba6 {[%clk 0:02:29]} 12. Rd1 {[%clk 0:01:56]}  Bxc4 {[%clk 0:02:25]} 13. Qxc4 {[%clk 0:01:57]}  Qd5 {[%clk 0:02:16]} 14. Qe2 {[%clk 0:01:55]}  Nbd7 {[%clk 0:02:13]} 15. Bg5 {[%clk 0:01:51]}  Qb5 {[%clk 0:02:11]} 16. Qc2 {[%clk 0:01:45]}  Nxe5 {[%clk 0:02:09]} 17. dxe5 {[%clk 0:01:45]}  Nd5 {[%clk 0:02:08]} 18. Rac1 {[%clk 0:01:40]}  h6 {[%clk 0:02:06]} 19. Bd2 {[%clk 0:01:28]}  Rc8 {[%clk 0:02:05]} 20. b3 {[%clk 0:01:25]}  Be7 {[%clk 0:01:52]} 21. Qe4 {[%clk 0:01:23]}  O-O {[%clk 0:01:48]} 22. h4 {[%clk 0:01:21]}  Rfd8 {[%clk 0:01:42]} 23. h5 {[%clk 0:01:20]}  c5 {[%clk 0:01:31]} 24. Nb2 {[%clk 0:01:18]}  Nb6 {[%clk 0:01:21]} 25. Be3 {[%clk 0:01:11]}  Rxd1+ {[%clk 0:01:11]} 26. Rxd1 {[%clk 0:01:11]}  Qc6 {[%clk 0:01:12]} 27. Qg4 {[%clk 0:01:10]}  Kf8 {[%clk 0:01:09]} 28. Nc4 {[%clk 0:01:08]}  Nxc4 {[%clk 0:01:08]} 29. Qxc4 {[%clk 0:01:08]}  a4 {[%clk 0:01:06]} 30. Rd3 {[%clk 0:00:45]}  axb3 {[%clk 0:01:04]} 31. axb3 {[%clk 0:00:45]}  Ke8 {[%clk 0:00:57]} 32. Rd1 {[%clk 0:00:36]}  Rd8 {[%clk 0:00:54]} 33. Rxd8+ {[%clk 0:00:35]}  Kxd8 {[%clk 0:00:48]} 34. Qg4 {[%clk 0:00:35]}  Bf8 {[%clk 0:00:46]} 35. Qe2 {[%clk 0:00:27]}  Kc7 {[%clk 0:00:32]} 36. Qc4 {[%clk 0:00:23]}  Qd5 {[%clk 0:00:22]} 37. Qa6 {[%clk 0:00:23]}  Qd1+ {[%clk 0:00:20]} 38. Kh2 {[%clk 0:00:22]}  Qxh5+ {[%clk 0:00:20]} 39. Kg1 {[%clk 0:00:23]}  Qd1+ {[%clk 0:00:20]} 40. Kh2 {[%clk 0:00:23]}  Qd5 {[%clk 0:00:18]} 41. Qa5+ {[%clk 0:00:21]}  Kb7 {[%clk 0:00:14]} 42. Qb5+ {[%clk 0:00:21]}  Kc7 {[%clk 0:00:14]} 43. Qa5+ {[%clk 0:00:21]}  Kc8 {[%clk 0:00:10]} 44. Qb5 {[%clk 0:00:16]}  Qxe5+ {[%clk 0:00:10]} 45. Kg1 {[%clk 0:00:15]}  Qd5 {[%clk 0:00:09]} 46. Qe8+ {[%clk 0:00:15]}  Qd8 {[%clk 0:00:10]} 47. Qc6+ {[%clk 0:00:15]}  Qc7 {[%clk 0:00:08]} 48. Qe8+ {[%clk 0:00:14]}  Qd8 {[%clk 0:00:09]} 49. Qc6+ {[%clk 0:00:14]}  Qc7 {[%clk 0:00:06]} 50. Qe8+ {[%clk 0:00:15]}  Qd8 {[%clk 0:00:06]} 1/2-1/2

[Event "January 2 Early 2024"]
[Site "https://www.chess.com"]
[Date "2024.01.02"]
[Round "2"]
[White "Jaiveer Mahendru"]
[Black "Holt, Conrad"]
[Result "0-1"]
[Board "84"]
[TimeControl "180+1"]
[WhiteFideId "25611151"]
[BlackFideId "2034387"]
[WhiteElo "2545"]
[BlackElo "2795"]
[WhiteTeam "IND"]
[BlackTeam "USA"]
[WhiteClock "0:00:17"]
[BlackClock "0:01:14"]

1. e4 {[%clk 0:03:00]}  e6 {[%clk 0:02:57]} 2. d4 {[%clk 0:03:01]}  d5 {[%clk 0:02:57]} 3. Nd2 {[%clk 0:03:01]}  c5 {[%clk 0:02:53]} 4. Ngf3 {[%clk 0:03:01]}  cxd4 {[%clk 0:02:53]} 5. Nxd4 {[%clk 0:03:00]}  Nf6 {[%clk 0:02:51]} 6. exd5 {[%clk 0:02:57]}  Nxd5 {[%clk 0:02:50]} 7. Ne4 {[%clk 0:02:55]}  Be7 {[%clk 0:02:44]} 8. Bd3 {[%clk 0:02:47]}  Nb4 {[%clk 0:02:40]} 9. Bb5+ {[%clk 0:02:46]}  N8c6 {[%clk 0:02:35]} 10. c3 {[%clk 0:02:32]}  O-O {[%clk 0:02:32]} 11. Nxc6 {[%clk 0:02:05]}  bxc6 {[%clk 0:02:18]} 12. Bc4 {[%clk 0:02:04]}  Qxd1+ {[%clk 0:02:15]} 13. Kxd1 {[%clk 0:02:05]}  Rd8+ {[%clk 0:02:11]} 14. Bd2 {[%clk 0:02:05]}  Nd5 {[%clk 0:02:07]} 15. Kc2 {[%clk 0:01:58]}  e5 {[%clk 0:02:06]} 16. Ng3 {[%clk 0:01:58]}  Be6 {[%clk 0:01:59]} 17. Rhe1 {[%clk 0:01:56]}  Nb4+ {[%clk 0:01:58]} 18. cxb4 {[%clk 0:01:49]}  Bxc4 {[%clk 0:01:58]} 19. Rxe5 {[%clk 0:01:31]}  Bd3+ {[%clk 0:01:55]} 20. Kc1 {[%clk 0:01:22]}  Bf6 {[%clk 0:01:46]} 21. Re3 {[%clk 0:01:03]}  Rd5 {[%clk 0:01:41]} 22. Bc3 {[%clk 0:00:57]}  Bg5 {[%clk 0:01:41]} 23. Kd2 {[%clk 0:00:38]}  Rad8 {[%clk 0:01:35]} 24. a3 {[%clk 0:00:25]}  Bxe3+ {[%clk 0:01:24]} 25. fxe3 {[%clk 0:00:26]}  Bf1+ {[%clk 0:01:23]} 26. Kc2 {[%clk 0:00:25]}  Bxg2 {[%clk 0:01:22]} 27. Rg1 {[%clk 0:00:26]}  Bf3 {[%clk 0:01:19]} 28. e4 {[%clk 0:00:25]}  Rd1 {[%clk 0:01:18]} 29. Rxd1 {[%clk 0:00:21]}  Bxd1+ {[%clk 0:01:17]} 30. Kc1 {[%clk 0:00:21]}  Bb3 {[%clk 0:01:17]} 31. Bd2 {[%clk 0:00:17]}  Rd4 {[%clk 0:01:14]} 0-1

[Event "January 2 Early 2024"]
[Site "https://www.chess.com"]
[Date "2024.01.02"]
[Round "2"]
[White "Baches Garcia, Guillermo"]
[Black "Bindrich, Falko"]
[Result "1/2-1/2"]
[Board "88"]
[TimeControl "180+1"]
[WhiteFideId "2209764"]
[BlackFideId "4676670"]
[WhiteElo "2538"]
[BlackElo "2784"]
[WhiteTeam "ESP"]
[BlackTeam "GER"]
[WhiteClock "0:00:18"]
[BlackClock "0:00:30"]

1. d4 {[%clk 0:03:00]}  d5 {[%clk 0:02:59]} 2. Nf3 {[%clk 0:03:01]}  e6 {[%clk 0:02:59]} 3. Bg5 {[%clk 0:03:01]}  Nf6 {[%clk 0:03:00]} 4. Nbd2 {[%clk 0:03:00]}  Be7 {[%clk 0:03:01]} 5. e3 {[%clk 0:03:01]}  Nbd7 {[%clk 0:03:01]} 6. Bd3 {[%clk 0:03:01]}  h6 {[%clk 0:03:01]} 7. Bh4 {[%clk 0:03:01]}  c5 {[%clk 0:03:01]} 8. c3 {[%clk 0:03:01]}  b6 {[%clk 0:03:02]} 9. Ne5 {[%clk 0:03:01]}  Bb7 {[%clk 0:03:00]} 10. f4 {[%clk 0:02:53]}  a6 {[%clk 0:02:59]} 11. Qf3 {[%clk 0:02:50]}  b5 {[%clk 0:02:59]} 12. O-O {[%clk 0:02:45]}  Qc7 {[%clk 0:02:59]} 13. Rad1 {[%clk 0:02:34]}  c4 {[%clk 0:02:54]} 14. Bb1 {[%clk 0:02:32]}  b4 {[%clk 0:02:54]} 15. h3 {[%clk 0:02:12]}  a5 {[%clk 0:02:53]} 16. Bg3 {[%clk 0:02:03]}  Bd6 {[%clk 0:02:37]} 17. Bh4 {[%clk 0:01:52]}  a4 {[%clk 0:02:27]} 18. cxb4 {[%clk 0:01:50]}  Bxb4 {[%clk 0:02:26]} 19. a3 {[%clk 0:01:47]}  Bd6 {[%clk 0:02:22]} 20. e4 {[%clk 0:01:26]}  dxe4 {[%clk 0:02:05]} 21. Nxe4 {[%clk 0:01:26]}  Nxe4 {[%clk 0:02:06]} 22. Bxe4 {[%clk 0:01:26]}  Bxe4 {[%clk 0:02:07]} 23. Qxe4 {[%clk 0:01:26]}  O-O {[%clk 0:02:08]} 24. Nxd7 {[%clk 0:01:17]}  Qxd7 {[%clk 0:02:08]} 25. d5 {[%clk 0:01:17]}  Rac8 {[%clk 0:01:13]} 26. dxe6 {[%clk 0:00:49]}  Qxe6 {[%clk 0:01:12]} 27. Qxe6 {[%clk 0:00:45]}  Bc5+ {[%clk 0:01:12]} 28. Bf2 {[%clk 0:00:41]}  fxe6 {[%clk 0:01:10]} 29. Bxc5 {[%clk 0:00:33]}  Rxc5 {[%clk 0:01:11]} 30. Rd6 {[%clk 0:00:33]}  Rb8 {[%clk 0:01:08]} 31. Rf2 {[%clk 0:00:30]}  Kf7 {[%clk 0:01:04]} 32. Ra6 {[%clk 0:00:24]}  c3 {[%clk 0:00:30]} 33. bxc3 {[%clk 0:00:24]}  Rc4 {[%clk 0:00:31]} 34. Ra7+ {[%clk 0:00:18]}  Kf6 {[%clk 0:00:30]} 1/2-1/2

[Event "January 2 Early 2024"]
[Site "https://www.chess.com"]
[Date "2024.01.02"]
[Round "2"]
[White "Kilpatrick, Callum"]
[Black "Khripachenko, Alexander"]
[Result "0-1"]
[Board "89"]
[TimeControl "180+1"]
[WhiteFideId "414425"]
[BlackFideId "54184975"]
[WhiteElo "2536"]
[BlackElo "2783"]
[WhiteTeam "ENG"]
[BlackTeam "FID"]
[WhiteClock "0:00:00"]
[BlackClock "0:00:22"]

1. e4 {[%clk 0:03:00]}  c5 {[%clk 0:02:59]} 2. Nf3 {[%clk 0:03:00]}  e6 {[%clk 0:02:59]} 3. d4 {[%clk 0:03:00]}  cxd4 {[%clk 0:02:59]} 4. Nxd4 {[%clk 0:03:01]}  Nc6 {[%clk 0:02:56]} 5. Nc3 {[%clk 0:03:00]}  Qc7 {[%clk 0:02:57]} 6. Be2 {[%clk 0:02:53]}  a6 {[%clk 0:02:57]} 7. Qd3 {[%clk 0:02:51]}  Nf6 {[%clk 0:02:56]} 8. Nxc6 {[%clk 0:02:44]}  dxc6 {[%clk 0:02:57]} 9. Qg3 {[%clk 0:02:43]}  e5 {[%clk 0:02:57]} 10. O-O {[%clk 0:02:35]}  Be6 {[%clk 0:02:56]} 11. f4 {[%clk 0:02:20]}  exf4 {[%clk 0:02:27]} 12. Bxf4 {[%clk 0:02:20]}  Qb6+ {[%clk 0:02:28]} 13. Kh1 {[%clk 0:02:19]}  O-O-O {[%clk 0:02:22]} 14. a4 {[%clk 0:02:03]}  a5 {[%clk 0:02:14]} 15. Be3 {[%clk 0:01:33]}  Qxb2 {[%clk 0:02:04]} 16. Ba7 {[%clk 0:01:14]}  Bd6 {[%clk 0:01:56]} 17. e5 {[%clk 0:01:14]}  Bc7 {[%clk 0:01:56]} 18. Rab1 {[%clk 0:01:08]}  Qxc2 {[%clk 0:01:56]} 19. Nb5 {[%clk 0:00:57]}  Ne4 {[%clk 0:01:49]} 20. Qe3 {[%clk 0:00:44]}  Bxe5 {[%clk 0:01:06]} 21. Bb6 {[%clk 0:00:30]}  Rd2 {[%clk 0:00:57]} 22. Rbc1 {[%clk 0:00:17]}  Rxe2 {[%clk 0:00:41]} 23. Rxc2 {[%clk 0:00:17]}  Rxe3 {[%clk 0:00:41]} 24. Bxe3 {[%clk 0:00:18]}  Bb3 {[%clk 0:00:41]} 25. Rcc1 {[%clk 0:00:14]}  Rd8 {[%clk 0:00:40]} 26. Bb6 {[%clk 0:00:13]}  Rd3 {[%clk 0:00:37]} 27. Na3 {[%clk 0:00:06]}  Bd5 {[%clk 0:00:29]} 28. Rfe1 {[%clk 0:00:00]}  Bb2 {[%clk 0:00:22]} 0-1

[Event "January 2 Early 2024"]
[Site "https://www.chess.com"]
[Date "2024.01.02"]
[Round "2"]
[White "Hammer, Jon Ludvig"]
[Black "Yashmetov, Mikhail"]
[Result "1-0"]
[Board "92"]
[TimeControl "180+1"]
[WhiteFideId "1503707"]
[BlackFideId "24198900"]
[WhiteElo "2777"]
[BlackElo "2532"]
[WhiteTeam "NOR"]
[BlackTeam "RUS"]
[WhiteClock "0:00:11"]
[BlackClock "0:00:15"]

1. e4 {[%clk 0:03:00]}  c6 {[%clk 0:03:00]} 2. Nf3 {[%clk 0:02:52]}  d5 {[%clk 0:03:00]} 3. Nc3 {[%clk 0:02:52]}  dxe4 {[%clk 0:03:00]} 4. Nxe4 {[%clk 0:02:53]}  Nf6 {[%clk 0:03:00]} 5. Qe2 {[%clk 0:02:51]}  Nxe4 {[%clk 0:03:00]} 6. Qxe4 {[%clk 0:02:51]}  Nd7 {[%clk 0:03:01]} 7. d4 {[%clk 0:02:48]}  Nf6 {[%clk 0:03:00]} 8. Qd3 {[%clk 0:02:48]}  Qd5 {[%clk 0:02:57]} 9. Be2 {[%clk 0:02:45]}  Bf5 {[%clk 0:02:56]} 10. Qd1 {[%clk 0:02:44]}  e6 {[%clk 0:02:48]} 11. O-O {[%clk 0:02:44]}  Be7 {[%clk 0:02:47]} 12. c4 {[%clk 0:02:43]}  Qa5 {[%clk 0:02:43]} 13. a3 {[%clk 0:02:28]}  O-O {[%clk 0:02:35]} 14. Nh4 {[%clk 0:02:09]}  Rad8 {[%clk 0:02:28]} 15. Be3 {[%clk 0:01:58]}  Be4 {[%clk 0:01:58]} 16. Qb3 {[%clk 0:01:15]}  b5 {[%clk 0:00:53]} 17. cxb5 {[%clk 0:00:59]}  Bd5 {[%clk 0:00:51]} 18. Qd3 {[%clk 0:00:26]}  Be4 {[%clk 0:00:42]} 19. Qd2 {[%clk 0:00:18]}  Qxd2 {[%clk 0:00:33]} 20. Bxd2 {[%clk 0:00:19]}  cxb5 {[%clk 0:00:34]} 21. Bxb5 {[%clk 0:00:19]}  Nd5 {[%clk 0:00:21]} 22. Nf3 {[%clk 0:00:19]}  Bxf3 {[%clk 0:00:20]} 23. gxf3 {[%clk 0:00:20]}  Bf6 {[%clk 0:00:21]} 24. Rac1 {[%clk 0:00:19]}  Bxd4 {[%clk 0:00:20]} 25. Rc2 {[%clk 0:00:20]}  Rb8 {[%clk 0:00:19]} 26. a4 {[%clk 0:00:19]}  Rb6 {[%clk 0:00:16]} 27. b3 {[%clk 0:00:17]}  h5 {[%clk 0:00:10]} 28. Rfc1 {[%clk 0:00:18]}  g6 {[%clk 0:00:09]} 29. Rc8 {[%clk 0:00:18]}  Rxc8 {[%clk 0:00:09]} 30. Rxc8+ {[%clk 0:00:18]}  Kg7 {[%clk 0:00:10]} 31. Ra8 {[%clk 0:00:18]}  Rb7 {[%clk 0:00:08]} 32. Rc8 {[%clk 0:00:13]}  Bf6 {[%clk 0:00:08]} 33. h3 {[%clk 0:00:11]}  Bd4 {[%clk 0:00:08]} 34. Kg2 {[%clk 0:00:11]}  Rb6 {[%clk 0:00:07]} 35. f4 {[%clk 0:00:10]}  Ne7 {[%clk 0:00:08]} 36. Rc7 {[%clk 0:00:10]}  Nf5 {[%clk 0:00:08]} 37. Rc6 {[%clk 0:00:05]}  Ne7 {[%clk 0:00:07]} 38. Rxb6 {[%clk 0:00:04]}  axb6 {[%clk 0:00:08]} 39. b4 {[%clk 0:00:04]}  Nd5 {[%clk 0:00:06]} 40. a5 {[%clk 0:00:04]}  bxa5 {[%clk 0:00:05]} 41. bxa5 {[%clk 0:00:05]}  Kf6 {[%clk 0:00:06]} 42. Kf3 {[%clk 0:00:05]}  Ke7 {[%clk 0:00:06]} 43. Bc6 {[%clk 0:00:04]}  Nc7 {[%clk 0:00:04]} 44. Bb7 {[%clk 0:00:03]}  Kd6 {[%clk 0:00:04]} 45. a6 {[%clk 0:00:03]}  Ba7 {[%clk 0:00:04]} 46. Be3 {[%clk 0:00:02]}  Nb5 {[%clk 0:00:02]} 47. Be4 {[%clk 0:00:02]}  Kc7 {[%clk 0:00:02]} 48. Bd3 {[%clk 0:00:02]}  Bxe3 {[%clk 0:00:02]} 49. fxe3 {[%clk 0:00:03]}  Na7 {[%clk 0:00:03]} 50. Ke4 {[%clk 0:00:03]}  Kb6 {[%clk 0:00:04]} 51. Ke5 {[%clk 0:00:04]}  Nc6+ {[%clk 0:00:02]} 52. Kf6 {[%clk 0:00:04]}  Nb4 {[%clk 0:00:03]} 53. Bc4 {[%clk 0:00:05]}  Nxa6 {[%clk 0:00:01]} 54. Bxa6 {[%clk 0:00:05]}  Kxa6 {[%clk 0:00:02]} 55. Kxf7 {[%clk 0:00:06]}  Kb5 {[%clk 0:00:03]} 56. Kxg6 {[%clk 0:00:06]}  Kc4 {[%clk 0:00:03]} 57. Kf6 {[%clk 0:00:05]}  Kd3 {[%clk 0:00:04]} 58. Kxe6 {[%clk 0:00:06]}  Kxe3 {[%clk 0:00:05]} 59. f5 {[%clk 0:00:06]}  Kf4 {[%clk 0:00:06]} 60. f6 {[%clk 0:00:07]}  Kg3 {[%clk 0:00:07]} 61. f7 {[%clk 0:00:08]}  Kxh3 {[%clk 0:00:08]} 62. f8=Q {[%clk 0:00:09]}  h4 {[%clk 0:00:09]} 63. Qf3+ {[%clk 0:00:07]}  Kh2 {[%clk 0:00:08]} 64. Qg4 {[%clk 0:00:08]}  h3 {[%clk 0:00:09]} 65. Kf5 {[%clk 0:00:08]}  Kh1 {[%clk 0:00:10]} 66. Qxh3+ {[%clk 0:00:09]}  Kg1 {[%clk 0:00:11]} 67. Qc3 {[%clk 0:00:09]}  Kh1 {[%clk 0:00:12]} 68. Qc2 {[%clk 0:00:09]}  Kg1 {[%clk 0:00:13]} 69. Kg4 {[%clk 0:00:09]}  Kf1 {[%clk 0:00:14]} 70. Kf3 {[%clk 0:00:10]}  Ke1 {[%clk 0:00:15]} 71. Qe2# {[%clk 0:00:11]} 1-0

[Event "January 2 Early 2024"]
[Site "https://www.chess.com"]
[Date "2024.01.02"]
[Round "2"]
[White "Kosteniuk, Alexandra"]
[Black "Petukhov, Dmitry"]
[Result "1/2-1/2"]
[Board "94"]
[TimeControl "180+1"]
[WhiteFideId "4128125"]
[BlackFideId "4142748"]
[WhiteElo "2773"]
[BlackElo "2510"]
[WhiteTeam "SUI"]
[BlackTeam "RUS"]
[WhiteClock "0:00:24"]
[BlackClock "0:00:15"]

1. d4 {[%clk 0:03:00]}  Nf6 {[%clk 0:02:57]} 2. c4 {[%clk 0:03:01]}  g6 {[%clk 0:02:58]} 3. Nc3 {[%clk 0:03:00]}  d5 {[%clk 0:02:58]} 4. cxd5 {[%clk 0:02:55]}  Nxd5 {[%clk 0:02:52]} 5. Nf3 {[%clk 0:02:52]}  Bg7 {[%clk 0:02:50]} 6. e3 {[%clk 0:02:52]}  O-O {[%clk 0:02:49]} 7. Bc4 {[%clk 0:02:51]}  Nb6 {[%clk 0:02:46]} 8. Bd3 {[%clk 0:02:49]}  c5 {[%clk 0:02:15]} 9. dxc5 {[%clk 0:02:47]}  Nd5 {[%clk 0:02:14]} 10. Bd2 {[%clk 0:02:41]}  Nf4 {[%clk 0:02:06]} 11. Bf1 {[%clk 0:02:36]}  Nd3+ {[%clk 0:02:00]} 12. Bxd3 {[%clk 0:02:37]}  Qxd3 {[%clk 0:02:01]} 13. Qe2 {[%clk 0:02:31]}  Qxe2+ {[%clk 0:01:47]} 14. Kxe2 {[%clk 0:02:31]}  Nc6 {[%clk 0:01:32]} 15. Rac1 {[%clk 0:02:17]}  Rd8 {[%clk 0:01:23]} 16. Rhd1 {[%clk 0:02:15]}  b6 {[%clk 0:01:11]} 17. Nb5 {[%clk 0:01:44]}  Ba6 {[%clk 0:01:09]} 18. a4 {[%clk 0:01:43]}  Bxb2 {[%clk 0:01:04]} 19. cxb6 {[%clk 0:01:44]}  Bxc1 {[%clk 0:00:50]} 20. Rxc1 {[%clk 0:01:45]}  Rac8 {[%clk 0:00:43]} 21. bxa7 {[%clk 0:01:05]}  Nxa7 {[%clk 0:00:44]} 22. Rb1 {[%clk 0:01:05]}  Rc4 {[%clk 0:00:31]} 23. Nxa7 {[%clk 0:00:54]}  Rb4+ {[%clk 0:00:30]} 24. Nb5 {[%clk 0:00:43]}  Rxb1 {[%clk 0:00:29]} 25. Nd4 {[%clk 0:00:44]}  Ra1 {[%clk 0:00:26]} 26. Nc6 {[%clk 0:00:43]}  Rxa4 {[%clk 0:00:21]} 27. Nxd8 {[%clk 0:00:40]}  Bxb5+ {[%clk 0:00:22]} 28. Kf3 {[%clk 0:00:41]}  Ra7 {[%clk 0:00:22]} 29. Bb4 {[%clk 0:00:37]}  Rd7 {[%clk 0:00:21]} 30. Ba5 {[%clk 0:00:36]}  Kf8 {[%clk 0:00:21]} 31. Kf4 {[%clk 0:00:37]}  Ke8 {[%clk 0:00:21]} 32. Kg5 {[%clk 0:00:37]}  Bd3 {[%clk 0:00:17]} 33. Kh6 {[%clk 0:00:35]}  Rxd8 {[%clk 0:00:17]} 34. Bxd8 {[%clk 0:00:35]}  Kxd8 {[%clk 0:00:17]} 35. Kxh7 {[%clk 0:00:35]}  Kd7 {[%clk 0:00:18]} 36. Kg7 {[%clk 0:00:35]}  Ke6 {[%clk 0:00:18]} 37. g4 {[%clk 0:00:34]}  g5 {[%clk 0:00:18]} 38. f4 {[%clk 0:00:33]}  gxf4 {[%clk 0:00:16]} 39. exf4 {[%clk 0:00:33]}  Be2 {[%clk 0:00:17]} 40. g5 {[%clk 0:00:32]}  Bh5 {[%clk 0:00:17]} 41. h4 {[%clk 0:00:32]}  Kf5 {[%clk 0:00:17]} 42. Kh6 {[%clk 0:00:32]}  Bf3 {[%clk 0:00:13]} 43. Kg7 {[%clk 0:00:26]}  Bd5 {[%clk 0:00:13]} 44. h5 {[%clk 0:00:25]}  Kxf4 {[%clk 0:00:14]} 45. h6 {[%clk 0:00:25]}  Be4 {[%clk 0:00:15]} 46. Kxf7 {[%clk 0:00:24]}  Kxg5 {[%clk 0:00:15]} 47. Kxe7 {[%clk 0:00:24]}  Kxh6 {[%clk 0:00:15]} 1/2-1/2

[Event "January 2 Early 2024"]
[Site "https://www.chess.com"]
[Date "2024.01.02"]
[Round "2"]
[White "Weisz, Bryan"]
[Black "Novozhilov, Semen"]
[Result "0-1"]
[Board "95"]
[TimeControl "180+1"]
[WhiteFideId "30934133"]
[BlackFideId "24289167"]
[WhiteElo "2505"]
[BlackElo "2772"]
[WhiteTeam "USA"]
[BlackTeam "RUS"]
[WhiteClock "0:00:13"]
[BlackClock "0:02:00"]

1. e4 {[%clk 0:03:00]}  c5 {[%clk 0:02:59]} 2. Nf3 {[%clk 0:03:00]}  Nc6 {[%clk 0:03:00]} 3. d4 {[%clk 0:03:01]}  cxd4 {[%clk 0:03:00]} 4. Nxd4 {[%clk 0:03:01]}  Nf6 {[%clk 0:03:01]} 5. Nc3 {[%clk 0:03:00]}  d6 {[%clk 0:03:01]} 6. Nd5 {[%clk 0:02:58]}  Nxd5 {[%clk 0:03:00]} 7. exd5 {[%clk 0:02:58]}  Qa5+ {[%clk 0:03:01]} 8. Bd2 {[%clk 0:02:55]}  Qxd5 {[%clk 0:03:00]} 9. Nb5 {[%clk 0:02:56]}  Qe6+ {[%clk 0:03:00]} 10. Be2 {[%clk 0:02:56]}  Qd7 {[%clk 0:03:01]} 11. c4 {[%clk 0:02:51]}  a6 {[%clk 0:02:59]} 12. Nc3 {[%clk 0:02:52]}  e6 {[%clk 0:03:00]} 13. O-O {[%clk 0:02:36]}  Be7 {[%clk 0:03:00]} 14. Bf3 {[%clk 0:02:17]}  O-O {[%clk 0:02:59]} 15. Re1 {[%clk 0:02:16]}  b6 {[%clk 0:02:53]} 16. Be3 {[%clk 0:02:01]}  Rb8 {[%clk 0:02:52]} 17. Na4 {[%clk 0:01:54]}  Qc7 {[%clk 0:02:50]} 18. Qb3 {[%clk 0:01:49]}  Na5 {[%clk 0:02:33]} 19. Bxb6 {[%clk 0:01:45]}  Qxc4 {[%clk 0:02:33]} 20. Qxc4 {[%clk 0:01:41]}  Nxc4 {[%clk 0:02:33]} 21. Bc7 {[%clk 0:01:31]}  Rb4 {[%clk 0:02:28]} 22. b3 {[%clk 0:01:27]}  Ne5 {[%clk 0:02:28]} 23. Bd1 {[%clk 0:01:15]}  Bb7 {[%clk 0:02:26]} 24. Ba5 {[%clk 0:01:02]}  Rb5 {[%clk 0:02:24]} 25. Bc3 {[%clk 0:01:00]}  Nd3 {[%clk 0:02:24]} 26. Re3 {[%clk 0:00:58]}  Nf4 {[%clk 0:02:24]} 27. Rg3 {[%clk 0:00:52]}  e5 {[%clk 0:02:21]} 28. Bd2 {[%clk 0:00:48]}  Rc8 {[%clk 0:02:19]} 29. Nc3 {[%clk 0:00:39]}  Rbc5 {[%clk 0:02:17]} 30. Na4 {[%clk 0:00:40]}  Rd5 {[%clk 0:02:14]} 31. Bxf4 {[%clk 0:00:33]}  exf4 {[%clk 0:02:13]} 32. Rg4 {[%clk 0:00:32]}  Rd4 {[%clk 0:02:11]} 33. g3 {[%clk 0:00:19]}  Bf6 {[%clk 0:02:06]} 34. Rb1 {[%clk 0:00:17]}  Rxd1+ {[%clk 0:02:02]} 35. Rxd1 {[%clk 0:00:17]}  Bf3 {[%clk 0:02:03]} 36. Rxf4 {[%clk 0:00:13]}  Bxd1 {[%clk 0:02:02]} 37. Rd4 {[%clk 0:00:14]}  Bf3 {[%clk 0:02:01]} 38. Rxd6 {[%clk 0:00:13]}  Rc1+ {[%clk 0:02:00]} 0-1

[Event "January 2 Early 2024"]
[Site "https://www.chess.com"]
[Date "2024.01.02"]
[Round "2"]
[White "Srebrnic, Marko"]
[Black "Munkhgal, Gombosuren"]
[Result "0-1"]
[Board "97"]
[TimeControl "180+1"]
[WhiteFideId "14603616"]
[BlackFideId "4901266"]
[WhiteElo "2472"]
[BlackElo "2764"]
[WhiteTeam "SLO"]
[BlackTeam "MGL"]
[WhiteClock "0:01:05"]
[BlackClock "0:02:33"]

1. e4 {[%clk 0:03:00]}  c5 {[%clk 0:02:59]} 2. Nf3 {[%clk 0:02:58]}  d6 {[%clk 0:03:00]} 3. g3 {[%clk 0:02:58]}  g6 {[%clk 0:02:59]} 4. Bg2 {[%clk 0:02:58]}  Bg7 {[%clk 0:03:00]} 5. O-O {[%clk 0:02:58]}  Nc6 {[%clk 0:03:00]} 6. c3 {[%clk 0:02:58]}  Nf6 {[%clk 0:03:01]} 7. Qe2 {[%clk 0:02:59]}  O-O {[%clk 0:03:01]} 8. Na3 {[%clk 0:02:59]}  e5 {[%clk 0:03:01]} 9. Nc2 {[%clk 0:02:57]}  Bg4 {[%clk 0:02:59]} 10. h3 {[%clk 0:02:56]}  Bd7 {[%clk 0:03:00]} 11. Rd1 {[%clk 0:02:56]}  Qc8 {[%clk 0:03:00]} 12. Kh2 {[%clk 0:02:55]}  Nxe4 {[%clk 0:02:46]} 13. Qxe4 {[%clk 0:02:52]}  Bf5 {[%clk 0:02:46]} 14. Qa4 {[%clk 0:02:49]}  b5 {[%clk 0:02:47]} 15. Qxb5 {[%clk 0:02:35]}  Bxc2 {[%clk 0:02:47]} 16. Re1 {[%clk 0:02:31]}  Rb8 {[%clk 0:02:48]} 17. Qe2 {[%clk 0:02:19]}  e4 {[%clk 0:02:47]} 18. Ng1 {[%clk 0:02:07]}  Bd3 {[%clk 0:02:48]} 19. Qd1 {[%clk 0:02:08]}  f5 {[%clk 0:02:45]} 20. f4 {[%clk 0:01:52]}  c4 {[%clk 0:02:44]} 21. b3 {[%clk 0:01:49]}  d5 {[%clk 0:02:44]} 22. Ba3 {[%clk 0:01:47]}  Re8 {[%clk 0:02:43]} 23. Re3 {[%clk 0:01:40]}  Qa6 {[%clk 0:02:43]} 24. Bd6 {[%clk 0:01:39]}  Rbd8 {[%clk 0:02:43]} 25. Be5 {[%clk 0:01:34]}  Nxe5 {[%clk 0:02:43]} 26. fxe5 {[%clk 0:01:33]}  Bxe5 {[%clk 0:02:43]} 27. Ne2 {[%clk 0:01:27]}  Qd6 {[%clk 0:02:40]} 28. Qf1 {[%clk 0:01:17]}  Rf8 {[%clk 0:02:36]} 29. Kh1 {[%clk 0:01:14]}  f4 {[%clk 0:02:33]} 30. gxf4 {[%clk 0:01:12]}  Rxf4 {[%clk 0:02:33]} 31. Nxf4 {[%clk 0:01:05]}  Bxf1 {[%clk 0:02:33]} 0-1